fUST/lending_fUST_20250108
["ID","MTS","AMOUNT","RATE_DAILY","PERIOD"]
[348052125,1736284235104,-500.0,0.00019178,2]
[348052127,1736284235114,-500.0,0.00019178,2]
[348052129,1736284235123,-500.0,0.00019178,2]
[348052131,1736284235132,-500.0,0.00019178,2]
[348052133,1736284235142,-500.0,0.00019178,2]
[348052135,1736284235152,-500.0,0.00019178,2]
[348052137,1736284235161,-500.0,0.00019178,2]
[348052139,1736284235171,-500.0,0.00019178,2]
[348052141,1736284235181,-500.0,0.00019178,2]
[348052143,1736284235190,-254.99018142,0.00019178,2]
[348052145,1736284235201,-500.0,0.00019178,2]
[348052147,1736284235211,-1111.35,0.00019178,2]
[348052149,1736284235221,-500.0,0.00019178,2]
[348052151,1736284235229,-500.0,0.00019178,2]
[348052153,1736284235239,-500.0,0.00019178,2]
[348052155,1736284235251,-500.0,0.00019178,2]
[348052157,1736284235261,-500.0,0.00019178,2]
[348052159,1736284235270,-500.0,0.00019178,2]
[348052161,1736284235279,-500.0,0.00019178,2]
[348052163,1736284235289,-500.0,0.00019178,2]
[348052165,1736284235298,-500.0,0.00019178,2]
[348052167,1736284235307,-500.0,0.00019178,2]
[348052169,1736284235316,-239.04128221,0.00019178,2]
[348052171,1736284235325,-501.6776997,0.00019178,2]
[348052173,1736284235335,-500.0,0.00019178,2]
[348052175,1736284235344,-203.95968376,0.00019178,2]
[348052177,1736284235354,-500.0,0.00019178,2]
[348052179,1736284235364,-500.0,0.00019178,2]
[348052181,1736284235373,-500.0,0.00019178,2]
[348052183,1736284235382,-500.0,0.00019178,2]
[348052185,1736284235391,-500.0,0.00019178,2]
[348052187,1736284235401,-500.0,0.00019178,2]
[348052189,1736284235410,-500.0,0.00019178,2]
[348052191,1736284235419,-500.0,0.00019178,2]
[348052193,1736284235428,-500.0,0.00019178,2]
[348052195,1736284235438,-500.0,0.00019178,2]
[348052197,1736284235447,-500.0,0.00019178,2]
[348052199,1736284235456,-500.0,0.00019178,2]
[348052201,1736284235466,-219.02351462,0.00019178,2]
[348052203,1736284235475,-500.0,0.00019178,2]
[348052205,1736284235485,-514.75,0.00019178,2]
[348052207,1736284235494,-500.0,0.00019178,2]
[348052209,1736284235508,-500.0,0.00019178,2]
[348052211,1736284235518,-500.0,0.00019178,2]
[348052213,1736284235527,-249.571789,0.00019178,2]
[348052215,1736284235536,-249.571789,0.00019178,2]
[348052217,1736284235545,-249.571789,0.00019178,2]
[348052219,1736284235558,-249.571789,0.00019178,2]
[348052221,1736284235567,-500.0,0.00019178,2]
[348052223,1736284235576,-500.0,0.00019178,2]
[348052225,1736284235586,-517.55,0.00019178,2]
[348052227,1736284235597,-500.0,0.00019178,2]
[348052229,1736284235606,-500.0,0.00019178,2]
[348052232,1736284235616,-500.0,0.00019178,2]
[348052234,1736284235627,-500.0,0.00019178,2]
[348052236,1736284235644,-500.0,0.00019178,2]
[348052239,1736284235657,-500.0,0.00019178,2]
[348052241,1736284235666,-500.0,0.00019178,5]
[348052243,1736284235676,-500.0,0.00019178,2]
[348052245,1736284235686,-500.0,0.00019178,2]
[348052247,1736284235695,-500.0,0.00019178,2]
[348052249,1736284235705,-500.0,0.00019178,2]
[348052251,1736284235715,-500.0,0.00019178,2]
[348052253,1736284235725,-500.0,0.00019178,2]
[348052255,1736284235735,-500.0,0.00019178,2]
[348052257,1736284235744,-500.0,0.00019178,2]
[348052259,1736284235756,-542.28048342,0.00019178,2]
[348052261,1736284235765,-500.0,0.00019178,2]
[348052263,1736284235774,-9430.96,0.00019178,2]
[348052265,1736284235784,-500.0,0.00019178,2]
[348052267,1736284235794,-151.0,0.00019178,2]
[348052269,1736284235804,-151.0,0.00019178,2]
[348052271,1736284235813,-500.0,0.00019178,2]
[348052274,1736284235823,-502.74821214,0.00019178,2]
[348052276,1736284235833,-798.91,0.000192,2]
[348052278,1736284235842,-210.056199,0.000192,2]
[348052280,1736284235852,-210.056199,0.000192,2]
[348052282,1736284235861,-151.0,0.00019345,2]
[348052284,1736284235872,-500.0,0.00019345,3]
[348052286,1736284235882,-500.0,0.00019345,3]
[348052288,1736284235892,-500.0,0.00019345,3]
[348052290,1736284235901,-500.0,0.00019345,3]
[348052292,1736284235910,-1669.04,0.00019345,3]
[348052294,1736284235919,-500.0,0.00019346,3]
[348052296,1736284235929,-500.0,0.00019346,3]
[348052298,1736284235939,-500.0,0.00019346,3]
[348052300,1736284235949,-500.0,0.00019346,3]
[348052302,1736284235959,-500.0,0.00019346,3]
[348052304,1736284235969,-500.0,0.00019346,3]
[348052306,1736284235978,-500.0,0.00019346,3]
[348052308,1736284235989,-500.0,0.00019346,3]
[348052310,1736284236003,-500.0,0.00019346,3]
[348052312,1736284236014,-500.0,0.00019346,3]
[348052314,1736284236024,-500.0,0.00019346,3]
[348052316,1736284236034,-500.0,0.00019346,3]
[348052318,1736284236045,-500.0,0.00019346,3]
[348052320,1736284236055,-500.0,0.00019346,3]
[348052322,1736284236065,-500.0,0.00019346,3]
[348052324,1736284236075,-500.0,0.00019346,3]
[348052326,1736284236084,-500.0,0.00019346,3]
[348052328,1736284236094,-500.0,0.00019346,3]
[348052331,1736284236107,-500.0,0.00019346,3]
[348052333,1736284236117,-249.571789,0.00019346,2]
[348052335,1736284236127,-249.571789,0.00019346,2]
[348052337,1736284236136,-151.0,0.00019346,2]
[348052339,1736284236145,-152.999238,0.00019349,2]
[348052341,1736284236155,-210.056199,0.00019349,2]
[348052343,1736284236164,-210.056199,0.00019349,2]
[348052345,1736284236174,-253.152474,0.00019349,2]
[348052347,1736284236184,-253.152474,0.00019349,2]
[348052349,1736284236194,-500.0,0.0001935,3]
[348052351,1736284236203,-2170.44,0.0001935,3]
[348052353,1736284236213,-500.0,0.0001935,3]
[348052355,1736284236223,-302.96970909,0.00019352,2]
[348052357,1736284236233,-306.0,0.000194,2]
[348052359,1736284236243,-500.0,0.00019449,3]
[348052361,1736284236255,-159.095331,0.00019449,2]
[348052363,1736284236264,-750.0,0.0001945,30]
[348052365,1736284236274,-500.0,0.00019452,3]
[348052367,1736284236284,-204.103233,0.00019452,3]
[348052369,1736284236293,-500.0,0.00019452,3]
[348052371,1736284236303,-500.0,0.00019452,3]
[348052373,1736284236313,-603.32466342,0.00019452,3]
[348052389,1736284236447,-500.0,0.00019452,3]
[348052391,1736284236457,-500.0,0.00019452,3]
[348052393,1736284236467,-500.0,0.00019452,3]
[348052395,1736284236476,-500.0,0.00019452,3]
[348052397,1736284236486,-500.0,0.00019452,3]
[348052399,1736284236495,-500.0,0.00019452,3]
[348052401,1736284236507,-179.69289885,0.00019452,3]
[348052403,1736284236516,-500.0,0.00019452,3]
[348052405,1736284236525,-500.0,0.00019452,3]
[348052407,1736284236534,-500.0,0.00019452,3]
[348052409,1736284236544,-500.0,0.00019452,3]
[348052411,1736284236556,-500.0,0.00019452,3]
[348052413,1736284236565,-500.0,0.00019452,3]
[348052415,1736284236575,-500.0,0.00019452,3]
[348052417,1736284236584,-500.0,0.00019452,3]
[348052419,1736284236593,-500.0,0.00019452,3]
[348052421,1736284236602,-500.0,0.00019452,3]
[348052423,1736284236611,-500.0,0.00019452,3]
[348052425,1736284236621,-500.0,0.00019452,3]
[348052427,1736284236630,-500.0,0.00019452,3]
[348052430,1736284236640,-500.0,0.00019452,3]
[348052432,1736284236649,-449.48,0.00019452,3]
[348052434,1736284236659,-500.0,0.00019452,3]
[348052436,1736284236668,-500.0,0.00019452,3]
[348052438,1736284236677,-500.0,0.00019452,3]
[348052440,1736284236687,-500.0,0.00019452,3]
[348052441,1736284236697,-500.0,0.00019452,3]
[348052444,1736284236707,-500.0,0.00019452,3]
[348052446,1736284236716,-500.0,0.00019452,3]
[348052448,1736284236725,-500.0,0.00019452,3]
[348052450,1736284236735,-500.0,0.00019452,3]
[348052452,1736284236744,-210.056199,0.00019452,2]
[348052454,1736284236754,-210.056199,0.00019452,2]
[348052456,1736284236763,-210.056199,0.00019452,2]
[348052457,1736284236772,-500.0,0.00019452,3]
[348052460,1736284236781,-210.056199,0.00019452,2]
[348052462,1736284236790,-500.0,0.00019452,3]
[348052464,1736284236799,-500.0,0.00019452,3]
[348052466,1736284236809,-358.27970429,0.00019452,3]
[348052468,1736284236817,-500.0,0.00019452,3]
[348052470,1736284236827,-500.0,0.00019452,3]
[348052472,1736284236836,-500.0,0.00019452,3]
[348052474,1736284236845,-154.15054172,0.00019452,3]
[348052476,1736284236853,-253.152474,0.00019452,2]
[348052478,1736284236863,-253.152474,0.00019452,2]
[348052480,1736284236872,-253.152474,0.00019452,2]
[348052482,1736284236882,-253.152474,0.00019452,2]
[348052484,1736284236891,-500.0,0.00019452,3]
[348052486,1736284236901,-500.0,0.00019452,3]
[348052488,1736284236911,-500.0,0.00019452,3]
[348052490,1736284236920,-500.0,0.00019452,3]
[348052492,1736284236929,-500.0,0.00019452,3]
[348052494,1736284236938,-500.0,0.00019452,3]
[348052496,1736284236947,-707.3,0.00019452,3]
[348052498,1736284236956,-500.0,0.00019452,3]
[348052500,1736284236966,-500.0,0.00019452,3]
[348052502,1736284236976,-500.0,0.00019452,3]
[348052504,1736284236985,-500.0,0.00019452,3]
[348052506,1736284236995,-500.0,0.00019452,3]
[348052508,1736284237006,-571.17,0.00019452,3]
[348052510,1736284237016,-500.0,0.00019452,3]
[348052512,1736284237026,-500.0,0.00019452,3]
[348052514,1736284237035,-500.0,0.00019452,3]
[348052516,1736284237044,-500.0,0.00019452,3]
[348052518,1736284237054,-500.0,0.00019452,3]
[348052520,1736284237063,-500.0,0.00019452,3]
[348052522,1736284237072,-500.0,0.00019452,3]
[348052524,1736284237081,-500.0,0.00019452,3]
[348052526,1736284237091,-500.0,0.00019452,3]
[348052528,1736284237100,-500.0,0.00019452,3]
[348052530,1736284237110,-500.0,0.00019452,3]
[348052532,1736284237119,-500.0,0.00019452,3]
[348052534,1736284237128,-500.0,0.00019452,3]
[348052536,1736284237139,-500.0,0.00019452,3]
[348052538,1736284237148,-500.0,0.00019452,3]
[348052540,1736284237158,-500.0,0.00019452,3]
[348052542,1736284237167,-500.0,0.00019452,3]
[348052544,1736284237177,-500.0,0.00019452,3]
[348052546,1736284237186,-500.0,0.00019452,3]
[348052548,1736284237196,-1111.35,0.00019452,3]
[348052550,1736284237205,-500.0,0.00019452,3]
[348052552,1736284237215,-500.0,0.00019452,3]
[348052554,1736284237225,-500.0,0.00019452,3]
[348052556,1736284237234,-500.0,0.00019452,3]
[348052558,1736284237243,-500.0,0.00019452,3]
[348052560,1736284237255,-500.0,0.00019452,3]
[348052562,1736284237264,-500.0,0.00019452,3]
[348052564,1736284237273,-500.0,0.00019452,3]
[348052566,1736284237283,-514.75,0.00019452,3]
[348052568,1736284237293,-500.0,0.00019452,3]
[348052570,1736284237302,-500.0,0.00019452,3]
[348052572,1736284237312,-249.571789,0.00019452,2]
[348052574,1736284237322,-249.571789,0.00019452,2]
[348052576,1736284237332,-249.571789,0.00019452,2]
[348052578,1736284237341,-249.571789,0.00019452,2]
[348052580,1736284237350,-517.55,0.00019452,3]
[348052583,1736284237360,-500.0,0.00019452,3]
[348052585,1736284237369,-500.0,0.00019452,3]
[348052586,1736284237379,-500.0,0.00019452,3]
[348052589,1736284237389,-500.0,0.00019452,3]
[348052591,1736284237399,-500.0,0.00019452,3]
[348052593,1736284237408,-500.0,0.00019452,3]
[348052595,1736284237417,-500.0,0.00019452,3]
[348052597,1736284237427,-500.0,0.00019452,3]
[348052599,1736284237437,-210.46,0.00019452,3]
[348052601,1736284237447,-511.32223319,0.00019452,3]
[348052603,1736284237456,-9430.96,0.00019452,3]
[348052605,1736284237465,-386.90345412,0.00019452,3]
[348052607,1736284237475,-151.0,0.00019452,2]
[348052609,1736284237484,-151.0,0.00019452,2]
[348052611,1736284237493,-530.47837236,0.00019473,2]
[348052613,1736284237505,-512.80873587,0.00019473,2]
[348052615,1736284237514,-168.3134617,0.00019473,2]
[348052617,1736284237523,-151.0,0.00019512,2]
[348052619,1736284237532,-619.06510729,0.00019523,2]
[348052621,1736284237542,-173.36030137,0.00019523,2]
[348052623,1736284237555,-253.152474,0.00019524,2]
[348052625,1736284237564,-253.152474,0.00019524,2]
[348052627,1736284237573,-249.571789,0.00019524,2]
[348052629,1736284237582,-249.571789,0.00019524,2]
[348052631,1736284237592,-151.0,0.00019524,2]
[348052633,1736284237601,-32658.20310473,0.00019524,2]
[348052635,1736284237610,-302.96970909,0.00019545,2]
[348052637,1736284237619,-156.975903,0.00019618,2]
[348052639,1736284237631,-151.0,0.00019618,2]
[348052641,1736284237640,-152.32942,0.00019618,2]
[348052643,1736284237649,-152.32942,0.00019618,2]
[348052645,1736284237658,-151.0,0.00019618,2]
[348052647,1736284237667,-500.0,0.00019619,3]
[348052649,1736284237676,-500.0,0.00019619,3]
[348052651,1736284237686,-500.0,0.00019619,3]
[348052653,1736284237695,-324.38380236,0.00019619,3]
[348052655,1736284237704,-1669.04,0.00019619,3]
[348052657,1736284237714,-152.020225,0.0001962,2]
[348052659,1736284237723,-152.32942,0.0001962,2]
[348052661,1736284237733,-152.32942,0.0001962,2]
[348052663,1736284237743,-500.0,0.0001962,3]
[348052665,1736284237753,-500.0,0.0001962,3]
[348052667,1736284237763,-151.0,0.0001962,2]
[348052669,1736284237772,-500.0,0.0001962,3]
[348052671,1736284237781,-500.0,0.0001962,3]
[348052673,1736284237791,-464.14847171,0.0001962,3]
[348052675,1736284237800,-500.0,0.0001962,3]
[348052677,1736284237811,-500.0,0.0001962,3]
[348052679,1736284237820,-500.0,0.0001962,3]
[348052681,1736284237829,-500.0,0.0001962,3]
[348052683,1736284237839,-500.0,0.0001962,3]
[348052686,1736284237853,-153.40078403,0.00019623,2]
[348052688,1736284237863,-151.0,0.00019623,2]
[348052690,1736284237873,-255.932811,0.00019623,2]
[348052692,1736284237882,-151.0,0.00019623,2]
[348052694,1736284237891,-151.0,0.00019623,2]
[348052696,1736284237901,-500.0,0.00019623,2]
[348052698,1736284237910,-210.056199,0.00019623,2]
[348052700,1736284237919,-210.056199,0.00019623,2]
[348052702,1736284237929,-500.0,0.00019624,3]
[348052704,1736284237938,-152.32942,0.00019624,2]
[348052706,1736284237947,-152.32942,0.00019624,2]
[348052708,1736284237957,-300.817269,0.00019624,2]
[348052710,1736284237967,-2170.44,0.00019624,3]
[348052712,1736284237976,-500.0,0.00019624,3]
[348052713,1736284237985,-151.0,0.00019719,2]
[348052714,1736284237995,-151.0,0.00019722,2]
[348052715,1736284238008,-151.0,0.00019722,2]
[348052717,1736284238018,-500.0,0.00019723,3]
[348052720,1736284238027,-253.152474,0.00019723,2]
[348052721,1736284238036,-253.152474,0.00019723,2]
[348052722,1736284238045,-40741.70322874,0.00019725,3]
[348052723,1736284238055,-12252.61635457,0.00019725,3]
[348052724,1736284238065,-500.0,0.00019726,3]
[348052725,1736284238074,-500.0,0.00019726,3]
[348052726,1736284238084,-638.4,0.00019726,3]
[348052727,1736284238095,-152.32942,0.00019726,2]
[348052728,1736284238104,-152.32942,0.00019726,2]
[348052729,1736284238114,-500.0,0.00019726,3]
[348052730,1736284238124,-500.0,0.00019726,3]
[348052731,1736284238133,-239.49079237,0.00019726,3]
[348052733,1736284238143,-615.79536367,0.00019726,3]
[348052735,1736284238152,-500.0,0.00019726,3]
[348052737,1736284238162,-500.0,0.00019726,3]
[348052739,1736284238171,-500.0,0.00019726,3]
[348052741,1736284238180,-500.0,0.00019726,3]
[348052743,1736284238189,-500.0,0.00019726,3]
[348052745,1736284238199,-500.0,0.00019726,3]
[348052747,1736284238208,-500.0,0.00019726,3]
[348052749,1736284238217,-500.0,0.00019726,3]
[348052751,1736284238226,-632.59152035,0.00019726,3]
[348052753,1736284238236,-500.0,0.00019726,3]
[348052755,1736284238245,-500.0,0.00019726,3]
[348052757,1736284238256,-500.0,0.00019726,3]
[348052759,1736284238266,-500.0,0.00019726,3]
[348052761,1736284238275,-500.0,0.00019726,3]
[348052763,1736284238284,-500.0,0.00019726,3]
[348052765,1736284238293,-500.0,0.00019726,3]
[348052767,1736284238302,-500.0,0.00019726,3]
[348052769,1736284238311,-500.0,0.00019726,3]
[348052771,1736284238321,-507.48236088,0.00019726,3]
[348052775,1736284238352,-500.0,0.00019726,3]
[348052777,1736284238361,-210.056199,0.00019726,2]
[348052779,1736284238371,-210.056199,0.00019726,2]
[348052781,1736284238380,-594.80242283,0.00019726,3]
[348052783,1736284238389,-210.056199,0.00019726,2]
[348052785,1736284238399,-210.056199,0.00019726,2]
[348052787,1736284238408,-500.0,0.00019726,3]
[348052789,1736284238418,-500.0,0.00019726,3]
[348052792,1736284238427,-500.0,0.00019726,3]
[348052794,1736284238437,-500.0,0.00019726,3]
[348052796,1736284238446,-500.0,0.00019726,3]
[348052797,1736284238455,-253.152474,0.00019726,2]
[348052800,1736284238465,-253.152474,0.00019726,2]
[348052802,1736284238475,-253.152474,0.00019726,2]
[348052803,1736284238484,-253.152474,0.00019726,2]
[348052806,1736284238494,-500.0,0.00019726,3]
[348052807,1736284238507,-204.18445614,0.00019726,3]
[348052809,1736284238516,-500.0,0.00019726,3]
[348052811,1736284238525,-500.0,0.00019726,3]
[348052814,1736284238536,-707.3,0.00019726,3]
[348052816,1736284238546,-500.0,0.00019726,3]
[348052817,1736284238559,-500.0,0.00019726,3]
[348052820,1736284238569,-500.0,0.00019726,3]
[348052821,1736284238578,-500.0,0.00019726,3]
[348052823,1736284238588,-500.0,0.00019726,3]
[348052826,1736284238598,-571.17,0.00019726,3]
[348052827,1736284238607,-500.0,0.00019726,3]
[348052829,1736284238617,-500.0,0.00019726,3]
[348052831,1736284238627,-508.04,0.00019726,3]
[348052833,1736284238637,-500.0,0.00019726,3]
[348052835,1736284238647,-500.0,0.00019726,3]
[348052837,1736284238656,-500.0,0.00019726,3]
[348052839,1736284238665,-500.0,0.00019726,3]
[348052842,1736284238674,-500.0,0.00019726,3]
[348052844,1736284238685,-500.0,0.00019726,3]
[348052846,1736284238694,-500.0,0.00019726,3]
[348052847,1736284238703,-500.0,0.00019726,3]
[348052849,1736284238712,-500.0,0.00019726,3]
[348052851,1736284238722,-500.0,0.00019726,3]
[348052853,1736284238731,-500.0,0.00019726,3]
[348052855,1736284238740,-1111.35,0.00019726,3]
[348052858,1736284238751,-365.7040448,0.00019726,3]
[348052859,1736284238761,-500.0,0.00019726,3]
[348052862,1736284238770,-500.0,0.00019726,3]
[348052863,1736284238780,-500.0,0.00019726,3]
[348052866,1736284238790,-500.0,0.00019726,3]
[348052867,1736284238799,-514.75,0.00019726,3]
[348052869,1736284238808,-500.0,0.00019726,3]
[348052871,1736284238818,-249.571789,0.00019726,2]
[348052873,1736284238828,-249.571789,0.00019726,2]
[348052875,1736284238837,-249.571789,0.00019726,2]
[348052877,1736284238847,-249.571789,0.00019726,2]
[348052879,1736284238856,-249.571789,0.00019726,2]
[348052881,1736284238866,-249.571789,0.00019726,2]
[348052884,1736284238876,-517.55,0.00019726,3]
[348052886,1736284238886,-500.0,0.00019726,3]
[348052888,1736284238895,-500.0,0.00019726,3]
[348052890,1736284238904,-326.79554386,0.00019726,3]
[348052892,1736284238913,-500.0,0.00019726,3]
[348052894,1736284238922,-500.0,0.00019726,3]
[348052895,1736284238932,-500.0,0.00019726,3]
[348052898,1736284238942,-500.0,0.00019726,3]
[348052899,1736284238952,-500.0,0.00019726,3]
[348052901,1736284238961,-9430.96,0.00019726,3]
[348052904,1736284238971,-230.494126,0.00019726,2]
[348052905,1736284238981,-153.0,0.00019726,2]
[348052907,1736284238990,-302.96970909,0.00019739,2]
[348052909,1736284239002,-500.0,0.0001976,2]
[348052912,1736284239012,-500.0,0.00019863,7]
[348052913,1736284239021,-500.0,0.00019893,3]
[348052916,1736284239031,-500.0,0.00019893,3]
[348052918,1736284239040,-1669.04,0.00019893,3]
[348052920,1736284239049,-152.32942,0.00019894,2]
[348052922,1736284239059,-152.32942,0.00019894,2]
[348052923,1736284239068,-585.19,0.00019894,3]
[348052925,1736284239077,-500.0,0.00019894,3]
[348052928,1736284239087,-500.0,0.00019894,3]
[348052930,1736284239096,-151.0,0.00019897,2]
[348052931,1736284239105,-151.0,0.00019898,2]
[348052933,1736284239114,-500.0,0.00019898,3]
[348052936,1736284239123,-152.32942,0.00019898,2]
[348052937,1736284239132,-152.32942,0.00019898,2]
[348052940,1736284239143,-2170.44,0.00019898,3]
[348052942,1736284239152,-210.056199,0.00019898,2]
[348052944,1736284239161,-210.056199,0.00019898,2]
[348052946,1736284239171,-500.0,0.00019898,3]
[348052947,1736284239179,-249.571789,0.00019898,2]
[348052949,1736284239189,-249.571786,0.00019898,2]
[348052951,1736284239198,-302.96970909,0.00019932,2]
[348052953,1736284239208,-563.54929524,0.00019973,2]
[348052955,1736284239217,-151.0,0.00019996,2]
[348052958,1736284239226,-151.0,0.00019996,2]
[348052960,1736284239235,-151.0,0.00019996,2]
[348052962,1736284239246,-151.0,0.00019997,2]
[348052964,1736284239259,-500.0,0.00019997,3]
[348052966,1736284239268,-253.152474,0.00019999,2]
[348052968,1736284239278,-253.152472,0.00019999,2]
[348052970,1736284239287,-500.0,0.0002,3]
[348052972,1736284239296,-500.0,0.0002,3]
[348052974,1736284239306,-500.0,0.0002,3]
[348052976,1736284239315,-6235.0,0.0002,2]
[348052978,1736284239325,-500.0,0.0002,3]
[348052980,1736284239335,-500.0,0.0002,3]
[348052982,1736284239344,-500.0,0.0002,3]
[348052984,1736284239354,-500.0,0.0002,3]
[348052986,1736284239363,-500.0,0.0002,3]
[348052988,1736284239374,-500.0,0.0002,3]
[348052990,1736284239384,-500.0,0.0002,3]
[348052992,1736284239395,-500.0,0.0002,3]
[348052994,1736284239405,-500.0,0.0002,3]
[348052996,1736284239415,-500.0,0.0002,3]
[348052998,1736284239425,-497.82554026,0.0002,3]
[348053000,1736284239434,-500.0,0.0002,3]
[348053002,1736284239443,-500.0,0.0002,3]
[348053004,1736284239453,-500.0,0.0002,3]
[348053006,1736284239463,-500.0,0.0002,3]
[348053008,1736284239472,-210.056199,0.0002,2]
[348053010,1736284239481,-210.056192,0.0002,2]
[348053012,1736284239491,-500.0,0.0002,3]
[348053014,1736284239501,-500.0,0.0002,3]
[348053016,1736284239510,-500.0,0.0002,3]
[348053018,1736284239519,-500.0,0.0002,3]
[348053020,1736284239528,-604.52898624,0.0002,3]
[348053022,1736284239538,-209.21,0.0002,3]
[348053024,1736284239548,-707.3,0.0002,3]
[348053026,1736284239561,-500.0,0.0002,3]
[348053028,1736284239570,-500.0,0.0002,3]
[348053030,1736284239579,-500.0,0.0002,3]
[348053032,1736284239589,-500.0,0.0002,3]
[348053034,1736284239599,-500.0,0.0002,3]
[348053037,1736284239609,-571.17,0.0002,3]
[348053039,1736284239618,-500.0,0.0002,3]
[348053040,1736284239628,-500.0,0.0002,3]
[348053042,1736284239637,-576.86,0.0002,3]
[348053044,1736284239647,-500.0,0.0002,3]
[348053046,1736284239655,-500.0,0.0002,3]
[348053048,1736284239664,-500.0,0.0002,3]
[348053050,1736284239674,-500.0,0.0002,3]
[348053053,1736284239683,-647.02,0.0002,3]
[348053055,1736284239692,-467.66372433,0.0002,3]
[348053057,1736284239701,-500.0,0.0002,3]
[348053059,1736284239711,-500.0,0.0002,3]
[348053061,1736284239721,-1111.35,0.0002,3]
[348053063,1736284239731,-500.0,0.0002,3]
[348053065,1736284239740,-500.0,0.0002,3]
[348053067,1736284239751,-553.58,0.0002,3]
[348053069,1736284239760,-514.75,0.0002,3]
[348053071,1736284239769,-500.0,0.0002,3]
[348053073,1736284239779,-517.55,0.0002,3]
[348053075,1736284239788,-500.0,0.0002,3]
[348053077,1736284239797,-500.0,0.0002,3]
[348053079,1736284239807,-500.0,0.0002,3]
[348053081,1736284239816,-500.0,0.0002,3]
[348053083,1736284239826,-500.0,0.0002,3]
[348053085,1736284239835,-500.0,0.0002,3]
[348053087,1736284239844,-9430.96,0.0002,3]
[348053089,1736284239853,-3000.0,0.00020066,2]
[348053091,1736284239864,-454.16687417,0.00020126,4]
[348053093,1736284239875,-500.0,0.00020167,3]
[348053095,1736284239884,-1669.04,0.00020167,3]
[348053097,1736284239893,-153.40078403,0.00020167,2]
[348053099,1736284239903,-152.32942,0.00020168,2]
[348053101,1736284239912,-152.32942,0.00020168,2]
[348053103,1736284239922,-500.0,0.00020168,3]
[348053105,1736284239931,-500.0,0.00020168,3]
[348053107,1736284239940,-152.32942,0.00020172,2]
[348053110,1736284239952,-152.32942,0.00020172,2]
[348053112,1736284239961,-2170.44,0.00020172,3]
[348053115,1736284239972,-500.0,0.00020172,3]
[348053117,1736284239981,-151.0,0.00020268,2]
[348053119,1736284239990,-500.0,0.00020271,3]
[348053121,1736284240001,-151.0,0.00020272,2]
[348053123,1736284240010,-158.410331,0.00020272,2]
[348053124,1736284240019,-151.0,0.00020272,2]
[348053127,1736284240029,-151.86227,0.00020273,2]
[348053130,1736284240039,-151.0,0.00020273,2]
[348053133,1736284240048,-151.0,0.00020273,2]
[348053135,1736284240058,-306.36,0.00020273,3]
[348053137,1736284240068,-462.94586441,0.00020273,3]
[348053139,1736284240077,-239.14,0.00020273,3]